bitfinex/quotes_BTCUSD_20251219
["timestamp","ask_amount","ask_price","bid_price","bid_amount"]
[1766164573129,0.41491361,88311.0,88296.0,0.00572]
[1766164573130,0.00572,88311.0,88301.0,0.000108]
[1766164573328,0.00572,88311.0,88298.0,0.45059]
[1766164573582,0.00572,88311.0,88298.0,0.46191528]
[1766164573760,0.00572,88311.0,88304.0,0.05889115]
[1766164574196,0.0002,88312.0,88304.0,0.05889115]
[1766164577300,0.00258886,88315.0,88306.0,0.01132425]
[1766164577499,0.0002,88320.0,88315.0,0.00079]
[1766164577704,0.0002,88320.0,88318.0,0.05889115]
[1766164577916,3.04e-06,88329.0,88322.0,0.0113222]
[1766164578132,0.49296,88331.0,88322.0,0.0113222]
[1766164578133,0.49285131,88331.0,88327.0,0.0025]
[1766164578287,0.01131849,88351.0,88326.0,0.01132169]
[1766164578288,0.00572,88347.0,88332.0,0.01132092]
[1766164578489,0.00572,88347.0,88336.0,0.05889115]
[1766164578717,0.017039,88347.0,88336.0,0.05889115]
[1766164578898,0.01131964,88342.0,88335.0,0.00572]
[1766164579099,0.01131951,88343.0,88335.0,0.00572]
[1766164579300,0.01131977,88341.0,88333.0,0.00572]
[1766164579503,0.01132156,88327.0,88308.0,0.11796188]
[1766164579701,0.22642051,88332.0,88311.0,0.0025]
[1766164579702,0.01132207,88323.0,88311.0,0.0025]
[1766164579882,0.01132143,88328.0,88319.0,0.0025]
[1766164580271,0.05660719,88328.0,88319.0,0.0025]
[1766164580476,0.01132195,88324.0,88315.0,0.00572]
[1766164580685,0.39898,88328.0,88315.0,0.00572]
[1766164580815,0.41030143,88328.0,88318.0,0.05889115]
[1766164581199,0.39898,88328.0,88318.0,0.05889115]
[1766164581415,0.41030143,88328.0,88318.0,0.05889115]
[1766164581650,0.46690888,88328.0,88318.0,0.05889115]
[1766164581859,0.39898,88328.0,88318.0,0.05889115]
[1766164582873,0.41030143,88328.0,88318.0,0.05889115]
[1766164583088,0.00024658,88323.0,88318.0,0.05889115]
[1766164583485,0.00024658,88323.0,88317.0,0.0025]
[1766164585510,0.00024658,88323.0,88318.0,0.05889115]
[1766164586273,0.00024658,88323.0,88317.0,0.0025]
[1766164587204,0.39922658,88323.0,88316.0,0.00572]
[1766164587425,0.4967,88320.0,88315.0,0.00572]
[1766164587602,0.39898,88318.0,88315.0,0.00572]
[1766164587778,0.39898,88318.0,88308.0,0.00010827]
[1766164587982,0.39898,88318.0,88313.0,0.00572]
[1766164588195,0.41030272,88318.0,88309.0,0.00572]
[1766164588519,0.39898,88318.0,88309.0,0.00572]
[1766164588900,0.00024658,88323.0,88313.0,0.05661635]
[1766164589098,0.01132066,88334.0,88319.0,0.48034]
[1766164589333,0.07364341,88335.0,88320.0,0.48606]
[1766164589533,0.067924,88334.0,88320.0,0.48606]
[1766164589750,0.01132079,88333.0,88320.0,0.48606]
[1766164589955,0.01132105,88331.0,88320.0,0.48606]
[1766164590382,0.06792633,88331.0,88320.0,0.48606]
[1766164590582,0.05660655,88329.0,88320.0,0.00572]
[1766164590755,0.06792687,88331.0,88320.0,0.00572]
[1766164590960,0.01132079,88333.0,88320.0,0.00572]
[1766164591160,0.00572,88335.0,88320.0,0.00572]
[1766164591343,0.00572,88335.0,88323.0,0.01132207]
[1766164591570,0.01131951,88343.0,88332.0,0.05889115]
[1766164591786,0.00572,88345.0,88333.0,0.49166079]
[1766164591985,0.00572,88345.0,88333.0,0.75642]
[1766164592186,0.05659002,88355.0,88337.0,0.0566013]
[1766164592400,0.01131874,88349.0,88338.0,0.48606]
[1766164592755,0.01131849,88351.0,88338.0,0.48606]
[1766164592914,0.01131861,88350.0,88338.0,0.48606]
[1766164593445,0.01131913,88346.0,88338.0,0.00572]
[1766164593643,0.05659446,88348.0,88338.0,0.00572]
[1766164593845,0.06791333,88348.0,88338.0,0.00572]
[1766164594206,0.06790989,88353.0,88338.0,0.00572]
[1766164594416,0.0025,88354.0,88339.0,0.48979]
[1766164594629,0.0025,88354.0,88338.0,0.00572]
[1766164594630,0.03420267,88367.0,88352.0,0.48979]
[1766164594831,0.00030825,88367.0,88353.0,0.00572]
[1766164594977,0.00030825,88367.0,88355.0,0.0025]
[1766164595178,0.00030825,88367.0,88356.0,0.05001839]
[1766164595380,0.01131656,88366.0,88356.0,0.05001839]
[1766164595621,0.06820696,88367.0,88356.0,0.05001839]
[1766164595822,0.01131656,88366.0,88357.0,0.00572]
[1766164596049,0.001099,88357.0,88356.0,0.00572]
[1766164596255,0.001099,88357.0,88354.0,0.00572]
[1766164596448,0.48596,88363.0,88354.0,0.00572]
[1766164596844,0.92829,88363.0,88354.0,0.00572]
[1766164597043,0.01131708,88362.0,88346.0,0.01]
[1766164597208,0.92829,88363.0,88347.0,0.00572]
[1766164597404,0.05658643,88361.0,88348.0,0.00572]
[1766164597613,0.01131733,88360.0,88346.0,0.48979]
[1766164597831,0.45364721,88361.0,88347.0,0.00572]
[1766164598243,0.44233,88361.0,88348.0,0.0025]
[1766164598702,0.01131733,88360.0,88348.0,0.0025]
[1766164598926,0.44233,88361.0,88348.0,0.0025]
[1766164599110,0.44233,88361.0,88349.0,0.01131874]
[1766164599436,0.44233,88361.0,88348.0,0.0590943]
[1766164599437,0.55386183,88363.0,88348.0,0.0025]
[1766164599553,0.06790483,88359.0,88348.0,0.0025]
[1766164599755,0.01131746,88359.0,88348.0,0.0025]
[1766164599958,0.06790411,88360.0,88348.0,0.0025]
[1766164600213,0.54254527,88363.0,88348.0,0.0025]
[1766164600351,0.48596,88363.0,88348.0,0.0025]
[1766164600757,0.54254481,88363.0,88348.0,0.0025]
[1766164600967,0.92829,88363.0,88348.0,0.0025]
[1766164601627,0.93960695,88363.0,88348.0,0.0025]
[1766164602235,0.48596,88363.0,88348.0,0.49229]
[1766164602414,0.01162469,88367.0,88353.0,0.0025]
[1766164602415,0.00030825,88367.0,88353.0,0.0025]
[1766164602616,0.00030825,88367.0,88355.0,0.0025]
[1766164602844,0.0002,88369.0,88364.0,0.01131682]
[1766164603086,0.05657199,88383.0,88366.0,0.48979]
[1766164603279,0.48596,88384.0,88366.0,0.48979]
[1766164603280,0.48596,88384.0,88366.0,0.55768913]
[1766164603489,0.0002,88389.0,88382.0,0.01131452]
[1766164603684,0.0115126,88397.0,88383.0,0.49551]
[1766164603902,0.05656581,88393.0,88383.0,0.00572]
[1766164604098,0.01131285,88395.0,88383.0,0.00572]
[1766164604391,0.00056074,88397.0,88388.0,0.01131375]
[1766164604570,7.4e-07,88397.0,88395.0,0.48979]
[1766164604777,7.4e-07,88397.0,88396.0,0.00822]
[1766164605905,7.4e-07,88397.0,88396.0,0.001401]
[1766164606076,7.4e-07,88397.0,88391.0,0.04532]
[1766164606276,7.4e-07,88397.0,88392.0,0.00572]
[1766164606690,0.01131349,88390.0,88381.0,0.48979]
[1766164606912,0.05656503,88394.0,88383.0,0.00572]
[1766164607102,0.06787657,88396.0,88384.0,0.00572]
[1766164607411,7.4e-07,88397.0,88384.0,0.00572]
[1766164607624,7.4e-07,88397.0,88385.0,0.01131413]
[1766164607858,7.4e-07,88397.0,88385.0,0.0025]
[1766164608056,0.01131334,88397.0,88385.0,0.0025]
[1766164608244,7.4e-07,88397.0,88385.0,0.0025]
[1766164608447,0.01131334,88397.0,88385.0,0.0025]
[1766164608656,0.01131272,88396.0,88385.0,0.0025]
[1766164608857,0.01131334,88397.0,88385.0,0.0025]
[1766164609275,7.4e-07,88397.0,88385.0,0.0025]
[1766164609910,7.4e-07,88397.0,88382.0,0.01]
[1766164609911,0.06787916,88393.0,88382.0,0.01]
[1766164610112,0.22625286,88397.0,88383.0,0.0025]
[1766164610113,0.00572,88392.0,88383.0,0.0025]
[1766164610753,0.00572,88392.0,88375.0,0.00572]
[1766164610754,0.01131388,88387.0,88375.0,0.00572]
[1766164610968,0.01131605,88370.0,88362.0,0.00572]
[1766164611174,0.05889115,88381.0,88363.0,0.01131298]
[1766164611175,0.00572,88369.0,88363.0,0.01131298]
[1766164611401,0.00572,88369.0,88360.0,0.0025]
[1766164611805,0.00572,88369.0,88359.0,0.07790471]
[1766164612044,0.00572,88369.0,88361.0,0.0025]
[1766164612174,0.00572,88369.0,88360.0,0.01131733]
[1766164612577,0.00572,88369.0,88360.0,0.0025]
[1766164612778,0.00572,88369.0,88363.0,0.0025]
[1766164612987,0.00572,88374.0,88363.0,0.49229]
[1766164613584,0.00572,88374.0,88363.0,0.50360695]
[1766164613783,0.00572,88374.0,88364.0,0.01131682]
[1766164614038,0.01131464,88381.0,88366.0,0.0025]
[1766164614215,0.45364452,88382.0,88366.0,0.49229]
[1766164614216,0.06788963,88379.0,88366.0,0.49229]
[1766164614468,0.01131503,88378.0,88366.0,0.49229]
[1766164614652,0.0678903,88378.0,88366.0,0.49229]
[1766164615059,0.01131503,88378.0,88366.0,0.49229]
[1766164615679,0.0113149,88379.0,88366.0,0.49229]
[1766164616054,0.05658112,88369.0,88359.0,0.00036]
[1766164616222,0.93401,88371.0,88359.0,0.00036]
[1766164616422,0.00572,88371.0,88359.0,0.00036]
[1766164616638,0.00572,88371.0,88362.0,0.01131708]
[1766164616885,0.00572,88374.0,88371.0,0.001099]
[1766164617441,0.056578,88374.0,88371.0,0.001099]
[1766164617610,0.44233,88373.0,88359.0,0.50146746]
[1766164617816,0.44233,88373.0,88359.0,0.49015]
[1766164618014,0.01131592,88371.0,88359.0,0.49015]
[1766164618181,0.44233,88373.0,88360.0,0.00822]
[1766164618812,0.01131656,88366.0,88360.0,0.001401]
[1766164619010,0.00027741,88364.0,88360.0,0.001401]
[1766164619222,0.44233,88370.0,88360.0,0.001401]
[1766164619352,0.45364605,88370.0,88360.0,0.001401]
[1766164619607,0.01131631,88368.0,88360.0,0.001401]
[1766164619800,0.44233,88370.0,88360.0,0.001401]
[1766164620002,0.45364605,88370.0,88360.0,0.001401]
[1766164620234,0.44233,88370.0,88360.0,0.001401]
[1766164620453,0.01131656,88366.0,88360.0,0.001401]
[1766164620827,0.01131656,88366.0,88352.0,0.48979]
[1766164620828,0.01131746,88359.0,88341.0,0.77062]
[1766164621049,0.45936733,88360.0,88342.0,0.02144]
[1766164621281,0.00572,88360.0,88347.0,0.28083]
[1766164621522,0.00572,88360.0,88344.0,0.07791608]
[1766164621523,0.45364759,88358.0,88348.0,0.0025]
[1766164621740,0.44233,88358.0,88348.0,0.0025]
[1766164621948,0.45364759,88358.0,88348.0,0.0025]
[1766164622178,0.01131772,88357.0,88348.0,0.0025]
[1766164622424,0.44233,88354.0,88341.0,0.00010825]
[1766164622629,0.44233,88354.0,88342.0,0.0025]
[1766164622630,0.00572,88353.0,88342.0,0.0025]
[1766164622839,0.004621,88353.0,88344.0,0.06791507]
[1766164623016,0.004621,88353.0,88348.0,0.01131887]
[1766164623255,0.004621,88353.0,88346.0,0.06791478]
[1766164623458,0.00572,88354.0,88347.0,0.0025]
[1766164623865,0.00572,88354.0,88347.0,0.013819]
[1766164624071,0.00572,88354.0,88347.0,0.0025]
[1766164624300,0.00572,88354.0,88347.0,0.013819]
[1766164624732,0.00572,88354.0,88347.0,0.0025]
[1766164625145,0.0170381,88354.0,88347.0,0.001401]
[1766164625275,0.00572,88354.0,88347.0,0.001401]
[1766164625898,0.00024658,88363.0,88352.0,0.01131836]
[1766164626107,0.42199,88380.0,88370.0,0.01131605]
[1766164626309,0.00572,88380.0,88372.0,0.0113158]
[1766164626691,0.01131375,88388.0,88361.0,0.33156839]
[1766164626692,0.05889115,88395.0,88373.0,0.01131567]
[1766164626886,0.040381,88416.0,88373.0,0.01131567]
[1766164626887,0.0002,88411.0,88397.0,0.0113126]
[1766164627066,0.0002,88411.0,88399.0,0.0025]
[1766164627216,0.00056097,88411.0,88399.0,0.01381234]
[1766164627421,0.00056097,88411.0,88400.0,0.0025]
[1766164627822,2.88e-06,88401.0,88400.0,0.0025]
[1766164628534,2.88e-06,88401.0,88400.0,0.05906108]
[1766164629151,0.01130774,88435.0,88412.0,0.01131068]
[1766164629330,0.42771,88434.0,88416.0,0.01131017]
[1766164629560,0.06785059,88430.0,88413.0,0.06461115]
[1766164629762,0.43901786,88434.0,88413.0,0.06461115]
[1766164629763,0.01130863,88428.0,88413.0,0.06461115]
[1766164630144,0.0113085,88429.0,88413.0,0.0759217]
[1766164630449,0.06785058,88430.0,88393.0,0.00572]
[1766164630450,0.0576524,88413.0,88393.0,0.00572]
[1766164630625,0.0576524,88413.0,88389.0,0.00572]
[1766164630626,0.05655806,88405.0,88389.0,0.00572]
[1766164630829,0.01131183,88403.0,88386.0,0.49469]
[1766164631027,0.06786809,88407.0,88389.0,0.00572]
[1766164631181,0.48867,88406.0,88368.0,0.05889115]
[1766164631382,0.42199,88392.0,88374.0,0.06789296]
[1766164631583,0.42199,88392.0,88376.0,0.05001839]
[1766164631784,0.42199,88392.0,88376.0,0.05037936]
[1766164632196,0.43330324,88392.0,88376.0,0.00036097]
[1766164632394,0.43330324,88392.0,88376.0,0.01036097]
[1766164632395,0.01131336,88391.0,88376.0,0.01036097]
[1766164632591,0.43330324,88392.0,88377.0,0.0025]
[1766164632794,0.43330324,88392.0,88379.0,0.0025]
[1766164633186,0.01131336,88391.0,88379.0,0.0025]
[1766164633422,0.01131349,88390.0,88379.0,0.0025]
[1766164633626,0.01131362,88389.0,88379.0,0.0025]
[1766164633832,0.01131388,88387.0,88379.0,0.0025]
[1766164634129,0.011314,88386.0,88379.0,0.0025]
[1766164634353,0.01131375,88388.0,88379.0,0.0025]
[1766164634553,0.01131362,88389.0,88379.0,0.0025]
[1766164634779,0.06788102,88390.0,88379.0,0.0025]
[1766164634978,0.01131362,88389.0,88379.0,0.0025]
[1766164635195,0.01131208,88401.0,88383.0,0.0025]
[1766164635412,0.42199,88406.0,88385.0,0.05889115]
[1766164635619,0.42199,88404.0,88390.0,0.01131349]
[1766164635832,0.42199,88404.0,88388.0,0.07360228]
[1766164636028,0.42199,88404.0,88389.0,0.01131362]
[1766164636237,0.01131196,88402.0,88388.0,0.00572]
[1766164636448,0.48867,88403.0,88391.0,0.01131336]
[1766164636652,0.00572,88405.0,88391.0,0.01131336]
[1766164636653,0.00572,88405.0,88399.0,0.05889115]
[1766164636859,0.0002464,88409.0,88399.0,0.05889115]
[1766164637726,0.0002464,88409.0,88396.0,0.00822]
[1766164637976,0.0002464,88409.0,88380.0,1.482566]
[1766164637977,0.42199,88395.0,88384.0,0.00572]
[1766164638177,0.42199,88395.0,88386.0,0.0025]
[1766164638387,0.42199,88395.0,88378.0,0.01]
[1766164638604,0.45553298,88394.0,88379.0,0.00572]
[1766164638804,0.44422,88394.0,88380.0,0.0025]
[1766164639599,0.44422,88394.0,88379.0,0.00572]
[1766164639600,0.001099,88380.0,88376.0,0.00036097]
[1766164639802,0.0565758,88377.0,88376.0,9.7e-07]
[1766164640008,0.9755958,88377.0,88376.0,9.7e-07]
[1766164640489,0.91902,88377.0,88376.0,9.7e-07]
[1766164640691,0.0170349,88379.0,88376.0,9.7e-07]
[1766164641740,0.07360968,88379.0,88376.0,9.7e-07]
[1766164642090,0.00572,88379.0,88376.0,9.7e-07]
[1766164642307,0.0025,88392.0,88378.0,0.01131503]
[1766164642504,0.00572,88391.0,88379.0,0.0113149]
[1766164642719,0.44422,88404.0,88380.0,0.0025]
[1766164642969,0.00572,88403.0,88389.0,0.06788172]
[1766164643256,0.4748,88405.0,88391.0,0.05889115]
[1766164643456,0.0002464,88409.0,88395.0,0.06787683]
[1766164643630,0.0002464,88409.0,88396.0,0.01131272]
[1766164644037,0.0002464,88409.0,88395.0,0.01381285]
[1766164644239,0.0002464,88409.0,88396.0,0.01131272]
[1766164644446,0.0002464,88409.0,88397.0,0.0113126]
[1766164644920,0.0002464,88409.0,88403.0,0.01131183]
[1766164645245,0.00572,88419.0,88405.0,0.07020272]
[1766164645454,0.00572,88419.0,88405.0,0.05889115]
[1766164645665,0.91902,88417.0,88402.0,0.01131196]
[1766164645811,0.91902,88417.0,88401.0,0.06787229]
[1766164646030,0.91902,88417.0,88402.0,0.01131196]
[1766164646031,0.91938097,88417.0,88402.0,0.01131196]
[1766164646381,0.00036097,88417.0,88405.0,0.05889115]
[1766164646583,0.00036097,88417.0,88406.0,0.06461115]
[1766164646738,9.7e-07,88417.0,88416.0,0.05905085]
[1766164646946,9.7e-07,88417.0,88416.0,0.00822]
[1766164647124,9.7e-07,88417.0,88416.0,0.05823839]
[1766164647336,0.01702812,88432.0,88417.0,0.05251839]
[1766164647600,0.01130901,88425.0,88417.0,0.05251839]
[1766164647875,0.001099,88417.0,88410.0,0.0025]
[1766164648030,0.001099,88417.0,88416.0,0.0025]
[1766164648237,0.01130914,88424.0,88416.0,0.0025]
[1766164648462,0.06785464,88425.0,88416.0,0.0025]
[1766164648673,0.01130901,88425.0,88416.0,0.0025]
[1766164649121,0.01130914,88424.0,88416.0,0.0025]
[1766164649273,0.01130876,88427.0,88416.0,0.0025]
[1766164649615,0.01130914,88424.0,88416.0,0.001401]
[1766164649950,0.44422,88437.0,88420.0,0.05889115]
[1766164650149,0.01130774,88435.0,88420.0,0.05889115]
[1766164650309,0.00010822,88432.0,88420.0,0.05889115]
[1766164650510,0.01130761,88436.0,88421.0,0.48167]
[1766164650710,0.01130761,88436.0,88421.0,0.48177822]
[1766164650911,0.01130774,88435.0,88421.0,0.48177822]
[1766164651092,0.01130761,88436.0,88421.0,0.48177822]
[1766164651296,0.01130812,88432.0,88421.0,0.48749822]
[1766164651498,0.01130825,88431.0,88421.0,0.00582822]
[1766164651702,0.06784903,88432.0,88421.0,0.00582822]
[1766164651901,0.01130812,88432.0,88421.0,0.00582822]
[1766164652198,0.01130825,88431.0,88421.0,0.00582822]
[1766164652630,0.01130812,88432.0,88421.0,0.00582822]
[1766164652809,0.00024639,88425.0,88421.0,0.00582822]
[1766164653011,0.05654647,88424.0,88421.0,0.00010822]
[1766164653214,0.05654647,88424.0,88404.0,0.06786981]
[1766164653215,0.51207491,88424.0,88415.0,0.00572]
[1766164653418,0.45563722,88424.0,88412.0,0.0025]
[1766164653615,0.44432808,88424.0,88412.0,0.0025]
[1766164654308,0.45563722,88424.0,88412.0,0.0025]
[1766164654691,0.01130927,88423.0,88412.0,0.0025]
[1766164654932,0.0113094,88422.0,88412.0,0.0025]
[1766164655110,0.51218312,88424.0,88412.0,0.0025]
[1766164655341,0.00010808,88424.0,88412.0,0.01381068]
[1766164655544,0.46307735,88438.0,88424.0,0.001099]
[1766164655716,0.0025,88437.0,88424.0,0.001099]
[1766164655913,0.00572,88436.0,88422.0,0.0113094]
[1766164656179,0.42136,88442.0,88425.0,0.06785354]
[1766164656386,0.00572,88441.0,88423.0,0.48906]
[1766164656590,0.01130735,88438.0,88423.0,0.48906]
[1766164656873,0.06784452,88438.0,88423.0,0.48906]
[1766164657052,0.00572,88441.0,88423.0,0.48906]
[1766164657277,0.00572,88441.0,88425.0,0.48906]
[1766164657505,0.00572,88441.0,88421.0,0.01130953]
[1766164657506,0.00572,88441.0,88430.0,0.01130837]
[1766164657799,0.00572,88441.0,88429.0,0.00572]
[1766164658089,0.01702697,88441.0,88429.0,0.00572]
[1766164658545,0.01702697,88441.0,88430.0,0.0105508]
[1766164658546,0.00572,88441.0,88430.0,0.0105508]
[1766164658761,0.0113071,88440.0,88431.0,0.0105508]
[1766164658928,0.06784036,88443.0,88432.0,0.0105508]
[1766164659131,0.01130658,88444.0,88433.0,0.0105508]
[1766164659335,0.01130658,88444.0,88429.0,0.00572]
[1766164659537,0.01130658,88444.0,88430.0,0.01054891]
[1766164659538,0.42136,88431.0,88430.0,0.01054891]
[1766164659783,0.42136,88431.0,88420.0,0.00572]
[1766164659784,0.42136,88431.0,88421.0,0.0025]
[1766164660142,0.43266825,88431.0,88421.0,0.0025]
[1766164660355,0.05654352,88428.0,88421.0,0.0025]
[1766164660558,0.01130927,88423.0,88411.0,0.48906]
[1766164660761,0.0113094,88422.0,88412.0,0.00572]
[1766164660991,0.0113094,88422.0,88411.0,0.48916808]
[1766164660992,0.01130978,88419.0,88411.0,0.00010808]
[1766164661206,0.01131093,88410.0,88397.0,0.04528]
[1766164661410,0.01131285,88395.0,88384.0,0.48906]
[1766164661602,0.01131362,88389.0,88373.0,0.48906]
[1766164661802,0.01131362,88389.0,88374.0,0.00572]
[1766164662017,0.01131375,88388.0,88374.0,0.00572]
[1766164662245,0.00572,88390.0,88376.0,0.01131528]
[1766164662434,0.00572,88390.0,88374.0,0.00572]
[1766164662435,0.01703349,88390.0,88375.0,0.05001839]
[1766164662676,0.01703349,88390.0,88375.0,0.0025]
[1766164662860,0.00572,88390.0,88375.0,0.01381541]
[1766164663063,0.00572,88390.0,88375.0,0.0025]
[1766164663199,0.01131413,88385.0,88374.0,0.00572]
[1766164663404,0.01131464,88381.0,88363.0,0.02131695]
[1766164663609,0.42136,88378.0,88364.0,0.00572]
[1766164663838,0.42136,88378.0,88367.0,0.01131644]
[1766164664036,0.45177,88380.0,88366.0,0.0025]
[1766164664320,0.42136,88378.0,88366.0,0.0025]
[1766164664605,0.05658109,88369.0,88366.0,9.7e-07]
[1766164664807,0.46308605,88370.0,88366.0,9.7e-07]
[1766164665064,0.45177,88370.0,88366.0,9.7e-07]
[1766164665260,0.00572,88372.0,88366.0,9.7e-07]
[1766164665478,0.0025,88384.0,88370.0,0.001099]
[1766164665697,0.42136,88386.0,88366.0,9.7e-07]
[1766164665698,0.0025,88382.0,88369.0,0.01131618]
[1766164665907,0.0025,88382.0,88366.0,9.7e-07]
[1766164666103,0.0113149,88379.0,88366.0,9.7e-07]
[1766164666319,0.01131567,88373.0,88366.0,9.7e-07]
[1766164666525,0.05658087,88370.0,88366.0,9.7e-07]
[1766164666743,0.01131605,88370.0,88366.0,9.7e-07]
[1766164666960,0.42136,88371.0,88366.0,9.7e-07]
[1766164667182,0.87313,88371.0,88366.0,9.7e-07]
[1766164667392,0.05658211,88368.0,88366.0,9.7e-07]
[1766164668023,0.42136,88370.0,88366.0,9.7e-07]
[1766164668952,0.00572,88372.0,88370.0,0.001099]
[1766164669367,0.00572,88372.0,88366.0,9.7e-07]
[1766164669587,0.45177,88381.0,88366.0,9.7e-07]
[1766164669793,0.00572,88377.0,88369.0,0.01131618]
[1766164669993,0.42136,88385.0,88367.0,0.05658203]
[1766164669994,0.00572,88380.0,88377.0,0.001099]
[1766164670216,0.0025,88381.0,88377.0,0.001099]
[1766164670438,0.00572,88382.0,88366.0,0.01131753]
[1766164670623,0.00572,88382.0,88366.0,0.06790019]
[1766164670824,0.00572,88382.0,88370.0,0.01131605]
[1766164671052,0.00572,88382.0,88370.0,0.06789608]
[1766164671225,0.00572,88382.0,88369.0,0.0025]
[1766164671504,0.00572,88382.0,88369.0,0.01381618]
[1766164671710,0.00572,88382.0,88369.0,0.0025]
[1766164671929,0.01131503,88378.0,88367.0,0.0025]
[1766164672123,0.45749,88382.0,88366.0,9.7e-07]
[1766164672124,0.45177,88367.0,88366.0,9.7e-07]
[1766164672399,0.45749,88367.0,88366.0,9.7e-07]
[1766164673253,0.00572,88367.0,88366.0,9.7e-07]
[1766164673972,0.45749,88367.0,88366.0,9.7e-07]
[1766164674952,0.87885,88367.0,88366.0,9.7e-07]
[1766164675158,0.45749,88367.0,88366.0,9.7e-07]
[1766164675527,0.01131733,88360.0,88347.0,0.01]
[1766164675708,0.01131733,88360.0,88347.0,0.01010825]
[1766164675908,0.01131759,88358.0,88347.0,0.00010825]
[1766164676110,0.07362408,88360.0,88347.0,0.00010825]
[1766164676312,0.00572,88360.0,88347.0,0.00010825]
[1766164676937,0.01131746,88359.0,88347.0,0.00010825]
[1766164677371,0.07362406,88360.0,88348.0,0.0025]
[1766164677574,0.00572,88360.0,88348.0,0.0025]
[1766164677990,0.01703733,88360.0,88348.0,0.0025]
[1766164678169,0.01131797,88355.0,88348.0,0.0025]
[1766164678370,0.01131772,88357.0,88348.0,0.0025]
[1766164678769,0.45177,88358.0,88348.0,0.0025]
[1766164679765,0.46308759,88358.0,88348.0,0.0025]
[1766164679970,0.01131772,88357.0,88348.0,0.0025]
[1766164680214,0.06790561,88358.0,88348.0,0.0025]
[1766164680395,0.01703733,88360.0,88348.0,0.0025]
[1766164680593,0.01131746,88359.0,88348.0,0.0025]
[1766164680810,0.01703733,88360.0,88348.0,0.0025]
[1766164681014,0.00572,88360.0,88350.0,0.01131861]
[1766164681174,0.00572,88360.0,88349.0,0.07020989]
[1766164681175,0.42136,88370.0,88354.0,0.0113181]
[1766164681376,0.0025,88373.0,88357.0,0.01131772]
[1766164681640,0.01131234,88399.0,88374.0,0.01131554]
[1766164681845,0.01131477,88380.0,88377.0,0.0025]
[1766164682040,0.0678874,88382.0,88377.0,0.001401]
[1766164682219,0.05657339,88381.0,88372.0,0.00572]
[1766164682537,0.01131516,88377.0,88372.0,0.00572]
[1766164682752,0.01131516,88377.0,88364.0,0.01051884]
[1766164682973,0.01131516,88377.0,88363.0,0.48906]
[1766164682974,0.05657838,88373.0,88361.0,0.00572]
[1766164683117,0.01131644,88367.0,88354.0,0.05001839]
[1766164683326,0.00010807,88367.0,88354.0,0.05001839]
[1766164683534,0.01142451,88367.0,88354.0,0.05001839]
[1766164683909,0.00010807,88367.0,88354.0,0.05001839]
[1766164684102,0.00010807,88367.0,88355.0,0.0025]
[1766164684778,0.44546451,88367.0,88355.0,0.0025]
[1766164684979,0.01131656,88366.0,88355.0,0.0025]
[1766164685211,0.01131656,88366.0,88355.0,0.0130234]
[1766164685364,0.01131656,88366.0,88355.0,0.0025]
[1766164685573,0.01131656,88366.0,88354.0,0.06054179]
[1766164685574,0.06790047,88365.0,88354.0,0.05001839]
[1766164685778,0.01131682,88364.0,88354.0,0.05001839]
[1766164686565,0.01131797,88355.0,88352.0,3.4e-06]
[1766164686762,0.01131797,88355.0,88338.0,0.04532]
[1766164686763,0.4453581,88354.0,88339.0,0.05001839]
[1766164686964,0.43404,88354.0,88342.0,0.05001839]
[1766164687167,0.43404,88354.0,88344.0,0.05001839]
[1766164687730,0.43404,88354.0,88343.0,0.05001839]
[1766164688309,0.43404,88354.0,88342.0,0.05001839]
[1766164688527,0.43404,88354.0,88343.0,0.0025]
[1766164693411,0.4453581,88354.0,88343.0,0.0025]
[1766164693615,0.43404,88354.0,88343.0,0.0025]
[1766164694474,0.4453581,88354.0,88343.0,0.0025]
[1766164695110,0.43404,88354.0,88343.0,0.0025]
[1766164695970,0.4453581,88354.0,88343.0,0.0025]
[1766164696214,0.43404,88354.0,88343.0,0.0025]
[1766164696422,0.43404,88354.0,88344.0,0.01131938]
[1766164696648,0.43404,88354.0,88343.0,0.0025]
[1766164696856,0.43404,88354.0,88344.0,0.0025]
[1766164697057,0.00572,88357.0,88344.0,0.0025]
[1766164697467,0.00572,88357.0,88344.0,0.01381938]
[1766164697683,0.00572,88357.0,88344.0,0.0025]
[1766164698104,0.00572,88357.0,88348.0,0.0025]
[1766164699369,0.01131567,88373.0,88355.0,0.05658986]
[1766164699574,0.00572,88370.0,88360.0,0.01131733]
[1766164699787,0.00572,88370.0,88364.0,0.01131682]
[1766164699788,7.345e-05,88370.0,88364.0,0.01131682]
[1766164700019,3.45e-06,88370.0,88364.0,0.45494]
[1766164700229,3.45e-06,88370.0,88365.0,0.0025]
[1766164702126,3.45e-06,88370.0,88362.0,0.05251839]
[1766164702356,0.06790068,88365.0,88347.0,0.06075319]
[1766164702558,0.41123,88362.0,88349.0,0.0025]
[1766164702818,0.41695,88362.0,88349.0,0.0025]
[1766164703035,0.41123,88360.0,88349.0,0.0025]
[1766164703255,0.001099,88349.0,88343.0,0.00572]
[1766164703695,0.001099,88349.0,88340.0,0.00822]
[1766164703696,0.06791253,88349.0,88340.0,0.00822]
[1766164703894,0.01131836,88352.0,88340.0,0.00572]
[1766164704135,0.45378,88350.0,88341.0,0.0025]
[1766164705597,0.41123,88349.0,88341.0,0.0025]
[1766164705802,0.41123,88349.0,88333.0,0.01132079]
[1766164705803,0.41123,88347.0,88337.0,0.01]
[1766164706014,0.86501,88346.0,88337.0,0.01]
[1766164707334,0.45378,88346.0,88337.0,0.01]
[1766164707758,0.45378,88346.0,88338.0,0.0025]
[1766164707957,0.00572,88349.0,88338.0,0.0025]
[1766164708609,0.41695,88349.0,88338.0,0.0025]
[1766164708938,0.0113222,88322.0,88308.0,0.06105691]
[1766164709154,0.45378,88317.0,88297.0,0.01132541]
[1766164709397,0.45378,88316.0,88303.0,0.01132464]
[1766164709616,0.00572,88315.0,88301.0,0.0113249]
[1766164709832,0.00572,88315.0,88300.0,0.01132502]
[1766164710072,0.41123,88314.0,88304.0,0.01132451]
[1766164710289,0.41123,88314.0,88302.0,0.01132477]
[1766164710539,0.41123,88314.0,88300.0,0.00579]
[1766164710750,0.86501,88314.0,88302.0,0.01132477]
[1766164710953,0.86501,88314.0,88303.0,0.0025]
[1766164711385,0.86501,88314.0,88303.0,0.01382464]
[1766164711596,0.86501,88314.0,88303.0,0.01132464]